Departmental family,Entity,Date Paid,Expense type,Expense Area,Supplier,Transaction Number, Amount , Description , Supplier Type , Expenditure Type 
UK Statistics Authority,Office for National Statistics,01-Dec-17,IT Contractual Services,Digital Services & Technology,Methods Digital Ltd,62058,"196,537.50", Information Management Services, Large , Programme 
UK Statistics Authority,Office for National Statistics,01-Dec-17,IT Contractual Services,Digital Services & Technology,Methods Digital Ltd,62058,"10,800.00", Information Management Services, Large , Programme 
UK Statistics Authority,Office for National Statistics,01-Dec-17,Rent Payable,Business Services & Development,Eaton Aerospace Limited,62061,"25,624.80", Rental of Car Parking Spaces at Titchfield, Large , Programme 
UK Statistics Authority,Office for National Statistics,01-Dec-17,Capital Major Works >25K,Business Services & Development,Paramount Office Interiors Ltd,62062,"93,758.86", Major Works Titchfield, SME , Programme 
UK Statistics Authority,Office for National Statistics,01-Dec-17,Major Works Over 25K,Business Services & Development,Paramount Office Interiors Ltd,62062,"129,476.52", Major Works Titchfield, SME , Programme 
UK Statistics Authority,Office for National Statistics,01-Dec-17,Software Pool 4Yr,Digital Services & Technology,Computacenter (UK) Limited,62063,"781,115.33", Information Management Services, Large , Programme 
UK Statistics Authority,Office for National Statistics,01-Dec-17,Consultancy,Digital Services & Technology,Experienced Management Consultants Limited (XMCS),62066,"26,716.00", Information Management Services, SME , Programme 
UK Statistics Authority,Office for National Statistics,01-Dec-17,ICT Outsourcing and Maintenance/Support,Business Services & Development,Cabinet Office,62071,"207,813.34", Subscriptions for Legal Support, Large , Programme 
UK Statistics Authority,Office for National Statistics,01-Dec-17,ICT Outsourcing and Maintenance/Support,Data Science Campus,Mango Solutions,62073,"15,182.48", Information Management Services, SME , Programme 
UK Statistics Authority,Office for National Statistics,01-Dec-17,IT Contractual Services,Digital Services & Technology,Mango Solutions,62073,"15,917.11", Information Management Services, SME , Programme 
UK Statistics Authority,Office for National Statistics,01-Dec-17,Training and Development,Business Services & Development,Mango Solutions,62073,"9,418.41", Information Management Services, SME , Programme 
UK Statistics Authority,Office for National Statistics,01-Dec-17,Surveys,Data Collection,NatCen Social Research,62075,"232,027.63", Statistical Services, Large , Programme 
UK Statistics Authority,Office for National Statistics,01-Dec-17,Facilities Management Contract Payments,"Finance, Audit & Business Development",Vinci Construction UK Limited,62078,"320,096.47", Facilities Management , Large , Programme 
UK Statistics Authority,Office for National Statistics,01-Dec-17,Business Rates,Business Services & Development,City of Westminster,62080,"247,076.00", Drummond Gate Rates, Large , Programme 
UK Statistics Authority,Office for National Statistics,01-Dec-17,Telecommunications,Data Collection,BT Global Services,62085,"8,036.58", Information Management Services, Large , Programme 
UK Statistics Authority,Office for National Statistics,01-Dec-17,Telecommunications,Digital Services & Technology,BT Global Services,62085,"22,632.00", Information Management Services, Large , Programme 
UK Statistics Authority,Office for National Statistics,01-Dec-17,Travel and Subsistence,"Finance, Audit & Business Development",Redfern Travel,62087,"51,314.84", Travel and Accommodation Booking Service , SME , Programme 
UK Statistics Authority,Office for National Statistics,01-Dec-17,Consultancy,Business Services & Development,Bramble.CC,62089,"241,322.40", Information Management Services, SME , Programme 
UK Statistics Authority,Office for National Statistics,04-Dec-17,Surveys,Public Policy Analysis,Kantar Public,62682,"778,459.20", Information Management Services, SME , Programme 
UK Statistics Authority,Office for National Statistics,04-Dec-17,IT Purchase > 2K,Digital Services & Technology,SCC,62683,"78,808.97", Information Management Services, Large , Programme 
UK Statistics Authority,Office for National Statistics,04-Dec-17,Contractors,Census,Certes Computing Ltd,62686,"9,393.38",Census Information Management Services, SME , Programme 
UK Statistics Authority,Office for National Statistics,04-Dec-17,Contractors,Census,Certes Computing Ltd,62686,"4,345.25",Census Information Management Services, SME , Programme 
UK Statistics Authority,Office for National Statistics,04-Dec-17,Contractors,Digital Services & Technology,Certes Computing Ltd,62686,"11,944.02", Information Management Services, SME , Programme 
UK Statistics Authority,Office for National Statistics,04-Dec-17,Childcare Services,"Finance, Audit & Business Development",Computershare Voucher Services,62690,"41,012.02", Childcare Vouchers , Large , Programme 
UK Statistics Authority,Office for National Statistics,05-Dec-17,Non IT Contractual Payments,Public Policy Analysis,Ricardo-Aea Ltd,62700,"25,552.80", Statistical Services, SME , Programme 
UK Statistics Authority,Office for National Statistics,05-Dec-17,ICT Outsourcing and Maintenance/Support,Digital Services & Technology,SCC,62701,"172,232.27", Information Management Services, Large , Programme 
UK Statistics Authority,Office for National Statistics,05-Dec-17,IT Purchases >2K,Digital Services & Technology,SCC,62701,"1,515.02", Information Management Services, Large , Programme 
UK Statistics Authority,Office for National Statistics,05-Dec-17,Postage,Data Collection,UK Mail,62707,"25,425.09", Outgoing Postage, Large , Programme 
UK Statistics Authority,Office for National Statistics,05-Dec-17,Contractors,Census,Certes Computing Ltd,62712,"14,347.20",Census Information Management Services, SME , Programme 
UK Statistics Authority,Office for National Statistics,05-Dec-17,Contractors,Digital Services & Technology,Certes Computing Ltd,62712,"8,186.88", Information Management Services, SME , Programme 
UK Statistics Authority,Office for National Statistics,05-Dec-17,Contractors,Digital Services & Technology,Certes Computing Ltd,62712,"11,582.40", Information Management Services, SME , Programme 
UK Statistics Authority,Office for National Statistics,05-Dec-17,IT Contractual Services,Digital Services & Technology,QA Ltd,62717,"138,450.00", Information Management Services, Large , Programme 
UK Statistics Authority,Office for National Statistics,06-Dec-17,Contractors,"Methods, Data & Research",Concept Information Technology Ltd T/A Concept Resourcing,62723,"2,470.56", Information Management Services, Large , Programme 
UK Statistics Authority,Office for National Statistics,06-Dec-17,Short-Term Contract and Agency Staff - Full Cost,"Methods, Data & Research",Concept Information Technology Ltd T/A Concept Resourcing,62723,"12,211.56", Information Management Services, Large , Programme 
UK Statistics Authority,Office for National Statistics,06-Dec-17,Short-Term Contract and Agency Staff - Full Cost,"Methods, Data & Research",Concept Information Technology Ltd T/A Concept Resourcing,62723,"4,574.02", Information Management Services, Large , Programme 
UK Statistics Authority,Office for National Statistics,06-Dec-17,Short-Term Contract and Agency Staff - Full Cost,"Methods, Data & Research",Concept Information Technology Ltd T/A Concept Resourcing,62723,"11,059.74", Information Management Services, Large , Programme 
UK Statistics Authority,Office for National Statistics,06-Dec-17,Travel and Subsistence,"Finance, Audit & Business Development",Redfern Travel,62727,"53,753.89", Travel and Accommodation Booking Service , SME , Programme 
UK Statistics Authority,Office for National Statistics,06-Dec-17,IT Contractual Services,Digital Services & Technology,Methods Digital Ltd,62731,"53,325.00", Information Management Services, Large , Programme 
UK Statistics Authority,Office for National Statistics,06-Dec-17,IT Contractual Services,Digital Services & Technology,Methods Digital Ltd,62731,"35,550.00", Information Management Services, Large , Programme 
UK Statistics Authority,Office for National Statistics,06-Dec-17,IT Contractual Services,Digital Services & Technology,Methods Digital Ltd,62731,"39,240.00", Information Management Services, Large , Programme 
UK Statistics Authority,Office for National Statistics,06-Dec-17,IT Contractual Services,Digital Services & Technology,Methods Digital Ltd,62731,"19,800.00", Information Management Services, Large , Programme 
UK Statistics Authority,Office for National Statistics,06-Dec-17,IT Contractual Services,Digital Services & Technology,Methods Digital Ltd,62731,"23,190.00", Information Management Services, Large , Programme 
UK Statistics Authority,Office for National Statistics,07-Dec-17,Travel and Subsistence,"Finance, Audit & Business Development",Calder World of Travel,63211,"26,170.88", Travel and Accommodation Booking Service , SME , Programme 
UK Statistics Authority,Office for National Statistics,07-Dec-17,Contractors,Census,Parity Resources Limited,63213,"5,446.80",Census Information Management Services, Large , Programme 
UK Statistics Authority,Office for National Statistics,07-Dec-17,Contractors,Digital Services & Technology,Parity Resources Limited,63213,"1,922.40", Information Management Services, Large , Programme 
UK Statistics Authority,Office for National Statistics,07-Dec-17,Contractors,Digital Services & Technology,Parity Resources Limited,63213,"19,749.48", Information Management Services, Large , Programme 
UK Statistics Authority,Office for National Statistics,07-Dec-17,Contractors,Digital Services & Technology,Parity Resources Limited,63213,"9,740.16", Information Management Services, Large , Programme 
UK Statistics Authority,Office for National Statistics,07-Dec-17,Contractors,Economic Statistics Transformation,Parity Resources Limited,63213,"19,480.32", Information Management Services, Large , Programme 
UK Statistics Authority,Office for National Statistics,07-Dec-17,IT Contractual Services,Digital Services & Technology,Parity Resources Limited,63213,"1,025.28", Information Management Services, Large , Programme 
UK Statistics Authority,Office for National Statistics,07-Dec-17,Short-Term Contract and Agency Staff - Full Cost,Business Services & Development,Parity Resources Limited,63213,"2,085.05", Information Management Services, Large , Programme 
UK Statistics Authority,Office for National Statistics,07-Dec-17,Short-Term Contract and Agency Staff - Full Cost,Census,Parity Resources Limited,63213,"2,349.82",Census Information Management Services, Large , Programme 
UK Statistics Authority,Office for National Statistics,07-Dec-17,Capital Major Works >25K,Business Services & Development,Hawkings Cladding Ltd,63218,"206,273.01", Major Work Newport Cladding, SME , Programme 
UK Statistics Authority,Office for National Statistics,07-Dec-17,Major Works Over 25K,Business Services & Development,Hawkings Cladding Ltd,63218,"36,401.12", Major Work Newport Cladding, SME , Programme 
UK Statistics Authority,Office for National Statistics,11-Dec-17,Oracle Cloud ERP Licences,"Finance, Audit & Business Development",SCC,63578,"66,171.92", Information Management Services, Large , Programme 
UK Statistics Authority,Office for National Statistics,12-Dec-17,Procurement Card,"Finance, Audit & Business Development",Royal Bank of Scotland,63878,"73,794.55", Multiple Procurement Card Purchases  , Large , Programme 
UK Statistics Authority,Office for National Statistics,12-Dec-17,Stationery,"Finance, Audit & Business Development",Royal Bank of Scotland,63878,"9,288.15", Multiple Procurement Card Stationery Purchases  , Large , Programme 
UK Statistics Authority,Office for National Statistics,13-Dec-17,Travel and Subsistence,"Finance, Audit & Business Development",Redfern Travel,64261,"58,563.61", Travel and Accommodation Booking Service , SME , Programme 
UK Statistics Authority,Office for National Statistics,13-Dec-17,Contractors,Digital Services & Technology,Medley Business Solutions Ltd,64263,"10,123.36", Information Management Services, Large , Programme 
UK Statistics Authority,Office for National Statistics,13-Dec-17,IT Contractual Services,Digital Services & Technology,Medley Business Solutions Ltd,64263,"18,057.60", Information Management Services, Large , Programme 
UK Statistics Authority,Office for National Statistics,13-Dec-17,Non IT Contractual Payments,Digital Services & Technology,Medley Business Solutions Ltd,64263,194.47, Information Management Services, Large , Programme 
UK Statistics Authority,Office for National Statistics,13-Dec-17,ICT Outsourcing and Maintenance/Support,Digital Services & Technology,Comparex UK Ltd,64269,"25,810.39", Software Licenses and Support, Large , Programme 
UK Statistics Authority,Office for National Statistics,14-Dec-17,Contractors,Digital Services & Technology,LA International,64285,"19,391.04", Information Management Services, SME , Programme 
UK Statistics Authority,Office for National Statistics,14-Dec-17,Contractors,Economic Statistics Transformation,LA International,64285,"6,679.46", Information Management Services, SME , Programme 
UK Statistics Authority,Office for National Statistics,14-Dec-17,Contractors,"Methods, Data & Research",LA International,64285,"7,048.56", Information Management Services, SME , Programme 
UK Statistics Authority,Office for National Statistics,14-Dec-17,Capital Major Works >25K,Business Services & Development,Paramount Office Interiors Ltd,64288,"29,729.91", Major Works Titchfield, SME , Programme 
UK Statistics Authority,Office for National Statistics,14-Dec-17,Furniture Costing <2K - Facilities Management Services,Data Science Campus,Paramount Office Interiors Ltd,64288,"2,129.42", Major Works Titchfield, SME , Programme 
UK Statistics Authority,Office for National Statistics,14-Dec-17,Major Works Over 25K,Business Services & Development,Paramount Office Interiors Ltd,64288,"41,055.59", Major Works Titchfield, SME , Programme 
UK Statistics Authority,Office for National Statistics,18-Dec-17,High Street Vouchers,Data Collection,Park Retail Ltd,65003,"26,603.55", Social Surveys Incentive Vouchers, Large , Programme 
UK Statistics Authority,Office for National Statistics,18-Dec-17,ICT Outsourcing and Maintenance/Support,Digital Services & Technology,QA Ltd,65018,"193,635.00", Information Management Services, Large , Programme 
UK Statistics Authority,Office for National Statistics,18-Dec-17,IT Contractual Services,Digital Services & Technology,QA Ltd,65018,"83,520.00", Information Management Services, Large , Programme 
UK Statistics Authority,Office for National Statistics,18-Dec-17,ICT Outsourcing and Maintenance/Support,Digital Services & Technology,ServiceNow,65022,"102,389.76", Information Management Services, Large , Programme 
UK Statistics Authority,Office for National Statistics,19-Dec-17,IT Contractual Services,Digital Services & Technology,Mastek,65023,"21,660.00", Information Management Services, Large , Programme 
UK Statistics Authority,Office for National Statistics,19-Dec-17,IT Contractual Services,Digital Services & Technology,Mastek,65023,"21,120.00", Information Management Services, Large , Programme 
UK Statistics Authority,Office for National Statistics,21-Dec-17,Surveys,National Accounts And Economic Statistics,Kantar Public,65410,"180,064.80", Statistical Services, SME , Programme 
UK Statistics Authority,Office for National Statistics,21-Dec-17,Contractors,Economic Statistics Transformation,Mango Solutions,65411,"26,415.48", Information Management Services, SME , Programme 
UK Statistics Authority,Office for National Statistics,21-Dec-17,Contractors,Economic Statistics Transformation,Mango Solutions,65411,"39,858.00", Information Management Services, SME , Programme 
UK Statistics Authority,Office for National Statistics,21-Dec-17,Contractors,Digital Services & Technology,E Synergy Solutions,65413,"184,554.00", Information Management Services , SME , Programme 
UK Statistics Authority,Office for National Statistics,21-Dec-17,ICT Outsourcing and Maintenance/Support,Digital Services & Technology,E Synergy Solutions,65413,"17,820.00", Information Management Services , SME , Programme 
UK Statistics Authority,Office for National Statistics,21-Dec-17,IT Contractual Services,Digital Services & Technology,E Synergy Solutions,65413,"13,248.00", Information Management Services , SME , Programme 
UK Statistics Authority,Office for National Statistics,21-Dec-17,Facilities Management Contract Payments,"Finance, Audit & Business Development",Vinci Construction UK Limited,65415,"313,972.48", Facilities Management , Large , Programme 
UK Statistics Authority,Office for National Statistics,21-Dec-17,Office Furniture,Business Services & Development,Vinci Construction UK Limited,65415,"2,872.77", Facilities Management , Large , Programme 
UK Statistics Authority,Office for National Statistics,21-Dec-17,Travel and Subsistence,"Finance, Audit & Business Development",Redfern Travel,65424,"29,842.97", Travel and Accommodation Booking Service , SME , Programme 
UK Statistics Authority,Office for National Statistics,21-Dec-17,ICT Outsourcing and Maintenance/Support,Digital Services & Technology,The Sensible Code Company,65431,"73,523.58", Information Management Services, SME , Programme 
UK Statistics Authority,Office for National Statistics,21-Dec-17,IT Contractual Services,Digital Services & Technology,QA Ltd,65434,"221,040.00", Information Management Services, Large , Programme 
UK Statistics Authority,Office for National Statistics,21-Dec-17,ICT Outsourcing and Maintenance/Support,Digital Services & Technology,Computacenter (UK) Limited,65436,"30,104.04", Information Management Services, Large , Programme 
UK Statistics Authority,Office for National Statistics,21-Dec-17,IT Equipment,Digital Services & Technology,Computacenter (UK) Limited,65436,318.06, Information Management Services, Large , Programme 
UK Statistics Authority,Office for National Statistics,21-Dec-17,IT Equipment,Digital Services & Technology,Computacenter (UK) Limited,65436,"15,699.00", Information Management Services, Large , Programme 
UK Statistics Authority,Office for National Statistics,21-Dec-17,IT Purchases >2K,Digital Services & Technology,Computacenter (UK) Limited,65436,"197,243.76", Information Management Services, Large , Programme 
UK Statistics Authority,Office for National Statistics,21-Dec-17,Consultancy,Digital Services & Technology,Parity Resources Limited,65437,"1,025.28", Information Management Services, Large , Programme 
UK Statistics Authority,Office for National Statistics,21-Dec-17,Contractors,Business Services & Development,Parity Resources Limited,65437,"21,274.56", Information Management Services, Large , Programme 
UK Statistics Authority,Office for National Statistics,21-Dec-17,Contractors,Business Services & Development,Parity Resources Limited,65437,"12,816.00", Information Management Services, Large , Programme 
UK Statistics Authority,Office for National Statistics,21-Dec-17,Contractors,Census,Parity Resources Limited,65437,"36,237.24",Census Information Management Services, Large , Programme 
UK Statistics Authority,Office for National Statistics,21-Dec-17,Contractors,Data Collection,Parity Resources Limited,65437,"11,534.40", Information Management Services, Large , Programme 
UK Statistics Authority,Office for National Statistics,21-Dec-17,Contractors,Digital Services & Technology,Parity Resources Limited,65437,"25,196.28", Information Management Services, Large , Programme 
UK Statistics Authority,Office for National Statistics,21-Dec-17,Contractors,Economic Statistics Transformation,Parity Resources Limited,65437,"6,060.42", Information Management Services, Large , Programme 
UK Statistics Authority,Office for National Statistics,21-Dec-17,Contractors,"Finance, Audit & Business Development",Parity Resources Limited,65437,"6,343.92", Information Management Services, Large , Programme 
UK Statistics Authority,Office for National Statistics,21-Dec-17,ICT Outsourcing and Maintenance/Support,Communications,Parity Resources Limited,65437,"10,893.60", Information Management Services, Large , Programme 
UK Statistics Authority,Office for National Statistics,21-Dec-17,Short-Term Contract and Agency Staff - Full Cost,Census,Parity Resources Limited,65437,"12,175.20",Census Information Management Services, Large , Programme 
UK Statistics Authority,Office for National Statistics,21-Dec-17,Short-Term Contract and Agency Staff - Full Cost,Census,Parity Resources Limited,65437,"3,649.82",Census Information Management Services, Large , Programme 
UK Statistics Authority,Office for National Statistics,21-Dec-17,Short-Term Contract and Agency Staff - Full Cost,Communications,Parity Resources Limited,65437,"8,910.00", Information Management Services, Large , Programme 
UK Statistics Authority,Office for National Statistics,21-Dec-17,Short-Term Contract and Agency Staff - Full Cost,Data Collection,Parity Resources Limited,65437,"1,823.11", Information Management Services, Large , Programme 
UK Statistics Authority,Office for National Statistics,21-Dec-17,Short-Term Contract and Agency Staff - Full Cost,Data Collection,Parity Resources Limited,65437,569.26, Information Management Services, Large , Programme 
UK Statistics Authority,Office for National Statistics,21-Dec-17,Short-Term Contract and Agency Staff - Full Cost,National Accounts And Economic Statistics,Parity Resources Limited,65437,"2,517.70", Information Management Services, Large , Programme 
UK Statistics Authority,Office for National Statistics,21-Dec-17,Short-Term Contract and Agency Staff - Full Cost,Public Policy Analysis,Parity Resources Limited,65437,"3,004.99", Information Management Services, Large , Programme 
UK Statistics Authority,Office for National Statistics,22-Dec-17,Surveys,National Accounts And Economic Statistics,IFF Research,65450,"191,013.00", Statistical Services, Large , Programme 
UK Statistics Authority,Office for National Statistics,22-Dec-17,ICT Outsourcing and Maintenance/Support,Digital Services & Technology,Automated Intelligence Ltd,65453,"43,560.00", Information Management Services, SME , Programme 
UK Statistics Authority,Office for National Statistics,22-Dec-17,Oracle Cloud,Business Services & Development,SCC,65462,"14,678.53", Information Management Services, Large , Programme 
UK Statistics Authority,Office for National Statistics,22-Dec-17,Oracle Cloud,"Finance, Audit & Business Development",SCC,65462,"27,140.57", Information Management Services, Large , Programme 
UK Statistics Authority,Office for National Statistics,22-Dec-17,Telecommunications,Digital Services & Technology,BT Global Services,65464,"25,389.32", Information Management Services, Large , Programme 
UK Statistics Authority,Office for National Statistics,22-Dec-17,Telecommunications,Digital Services & Technology,BT Global Services,65464,"82,702.26", Information Management Services, Large , Programme 
UK Statistics Authority,Office for National Statistics,22-Dec-17,Telecommunications,Public Policy Analysis,BT Global Services,65464,183.29, Information Management Services, Large , Programme 
UK Statistics Authority,Office for National Statistics,22-Dec-17,ICT Outsourcing and Maintenance/Support,Business Services & Development,Selenity,65475,"32,738.40", Statistical Services, SME , Programme 
UK Statistics Authority,Office for National Statistics,22-Dec-17,Capital Major Works >25K,Business Services & Development,Hawkings Cladding Ltd,65481,"156,100.24", Major Work Newport Cladding, SME , Programme 
UK Statistics Authority,Office for National Statistics,22-Dec-17,Major Works Over 25K,Business Services & Development,Hawkings Cladding Ltd,65481,"27,547.10", Major Work Newport Cladding, SME , Programme 
